bitfinex/quotes_ETHUSD_20251019
["timestamp","ask_amount","ask_price","bid_price","bid_amount"]
[1760850407175,0.04456563,3910.7,3910.6,3.69143298]
[1760850407344,0.04456563,3910.7,3910.6,3.79306146]
[1760850408873,0.44557103,3910.7,3910.6,3.79306146]
[1760850410949,0.44557103,3910.7,3910.6,9.39106146]
[1760850412892,0.04456563,3910.7,3910.6,9.39106146]
[1760850418260,0.04456563,3910.7,3910.6,9.39306146]
[1760850418674,0.44556436,3910.7,3910.6,9.39306146]
[1760850421566,0.40099873,3910.7,3910.6,9.39306146]
[1760850421988,0.40099873,3910.7,3910.6,8.93626146]
[1760850422929,0.001,3910.8,3910.7,2.55708696]
[1760850423130,0.001,3910.8,3910.7,4.96065157]
[1760850423587,0.001,3910.8,3910.7,5.30005157]
[1760850425231,0.04555832,3910.8,3910.7,5.30005157]
[1760850425525,0.04555832,3910.8,3910.7,4.84325157]
[1760850428154,0.38275832,3910.8,3910.7,4.84325157]
[1760850428343,0.3382,3910.8,3910.7,4.84325157]
[1760850428646,0.3382,3910.8,3910.7,2.89648696]
[1760850433260,0.001,3910.8,3910.7,2.89648696]
[1760850434230,0.0455605,3910.8,3910.7,2.89648696]
[1760850435166,0.001,3910.8,3910.7,2.89648696]
[1760850437273,0.001,3910.8,3910.7,4.62448696]
[1760850437568,0.001,3910.8,3910.7,5.78957461]
[1760850438643,0.04555971,3910.8,3910.7,4.06157461]
[1760850439539,0.04555971,3910.8,3910.7,4.08714547]
[1760850439737,0.001,3910.8,3910.7,4.21434547]
[1760850439952,0.001,3910.8,3910.7,4.18877461]
[1760850442762,0.04555792,3910.8,3910.7,4.18877461]
[1760850443366,0.001,3910.8,3910.7,4.18877461]
[1760850446606,0.04555755,3910.8,3910.7,4.18877461]
[1760850448212,0.001,3910.8,3910.7,4.18877461]
[1760850448784,0.40199035,3910.8,3910.7,4.18877461]
[1760850449089,0.40199035,3910.8,3910.7,3.75517461]
[1760850450562,0.40199035,3910.8,3910.7,4.18877461]
[1760850453301,0.40199035,3910.8,3910.7,4.21434547]
[1760850455107,0.40199035,3910.8,3910.7,5.94234547]
[1760850455285,0.44654806,3910.8,3910.7,5.91677461]
[1760850455484,0.44654806,3910.8,3910.7,9.78677461]
[1760850457463,0.04555771,3910.8,3910.7,9.78677461]
[1760850458571,0.04555771,3910.8,3910.7,9.35317461]
[1760850458772,0.04555771,3910.8,3910.7,9.82507461]
[1760850461331,0.04555771,3910.8,3910.7,9.35317461]
[1760850461988,0.44654809,3910.8,3910.7,9.35317461]
[1760850463018,0.44654809,3910.8,3910.7,9.82507461]
[1760850463716,0.001,3911.0,3910.9,3.19055619]
[1760850463919,0.001,3911.0,3910.9,11.20211329]
[1760850464119,0.001,3911.0,3910.9,11.77564373]
[1760850464522,0.001,3911.0,3910.9,16.04664436]
[1760850469430,0.001,3911.0,3910.9,18.54664436]
[1760850478649,0.001,3911.4,3911.3,3.1902947]
[1760850478940,0.001,3911.4,3911.3,12.95991557]
[1760850479115,0.001,3911.4,3911.3,13.40624863]
[1760850479322,0.001,3911.4,3911.3,14.17485564]
[1760850482243,0.001,3911.4,3911.3,11.60685564]
[1760850482446,0.001,3911.4,3911.3,14.17485564]
[1760850482738,0.001,3911.4,3911.3,11.60685564]
[1760850482945,0.001,3911.4,3911.3,11.13495564]
[1760850483133,0.001,3911.4,3911.3,13.70295564]
[1760850484659,0.001,3911.4,3911.3,14.17485564]
[1760850485038,3.0,3912.0,3911.3,14.17485564]
[1760850485215,3.0,3912.0,3911.9,9.87412702]
[1760850485616,3.0,3912.0,3911.9,10.64268283]
[1760850486660,3.0,3912.0,3911.9,11.08548283]
[1760850488249,3.0,3912.0,3911.9,8.25345837]
[1760850488551,3.4214,3912.0,3911.9,8.25345837]
[1760850488858,3.0,3912.0,3911.9,9.95726526]
[1760850489022,3.0,3912.0,3911.9,7.39026526]
[1760850489223,3.0,3912.0,3911.9,9.95726526]
[1760850489964,3.001,3912.0,3911.9,9.95726526]
[1760850491567,3.4224,3912.0,3911.9,9.95726526]
[1760850491862,3.4224,3912.0,3911.9,13.82726526]
[1760850492959,3.001,3912.0,3911.9,13.82726526]
[1760850494044,3.001,3912.0,3911.9,16.32726526]
[1760850501588,3.001,3912.0,3911.9,16.79736526]
[1760850505695,3.001,3912.0,3911.9,16.32726526]
[1760850510497,3.001,3912.0,3911.9,16.79736526]
[1760850514798,3.001,3912.0,3911.9,16.32726526]
[1760850515601,0.501,3912.0,3911.9,13.82726526]
[1760850516482,0.501,3912.0,3911.9,11.26026526]
[1760850516682,0.501,3912.0,3911.9,13.82726526]
[1760850519900,0.501,3912.0,3911.9,11.26026526]
[1760850520100,0.501,3912.0,3911.9,13.82726526]
[1760850526214,0.9224,3912.0,3911.9,6.75666526]
[1760850526581,0.9224,3912.0,3911.9,7.39026526]
[1760850526783,0.9224,3912.0,3911.9,7.39226526]
[1760850527304,0.9224,3912.0,3911.9,5.81565837]
[1760850528078,0.9224,3912.0,3911.9,5.18205837]
[1760850528514,0.9224,3912.0,3911.9,0.77055581]
[1760850529410,0.9224,3912.0,3911.9,3.32685837]
[1760850530684,0.9224,3912.0,3911.9,0.77055581]
[1760850532182,0.96694844,3912.0,3911.9,0.77055581]
[1760850532521,0.9224,3912.0,3911.9,0.77055581]
[1760850533018,0.9224,3912.0,3911.9,3.32685837]
[1760850533615,0.9224,3912.0,3911.9,0.77055581]
[1760850536241,0.96694842,3912.0,3911.9,0.77055581]
[1760850536818,0.54554842,3912.0,3911.9,3.32685837]
[1760850537022,0.54554842,3912.0,3911.9,3.35242139]
[1760850537216,0.54554842,3912.0,3911.9,3.32685837]
[1760850537442,0.96694842,3912.0,3911.9,3.32685837]
[1760850538534,0.96694842,3912.0,3911.9,0.77055581]
[1760850538905,0.96694842,3912.0,3911.9,3.32685837]
[1760850539148,1.36786143,3912.0,3911.9,3.32685837]
[1760850539437,0.96694842,3912.0,3911.9,3.32685837]
[1760850539642,0.9224,3912.0,3911.9,5.05485837]
[1760850540913,0.9224,3912.0,3911.9,2.49855581]
[1760850541649,0.9224,3912.0,3911.9,0.77055581]
[1760850542236,1.32331603,3912.0,3911.9,3.32685837]
[1760850542441,1.32331603,3912.0,3911.9,0.77055581]
[1760850543950,1.32331603,3912.0,3911.9,3.32685837]
[1760850544248,0.501,3912.0,3911.9,3.32685837]
[1760850546455,0.54554999,3912.0,3911.9,3.32685837]
[1760850547520,0.94647136,3912.0,3911.9,3.32685837]
[1760850549539,0.90192137,3912.0,3911.9,3.32685837]
[1760850554523,0.501,3912.0,3911.9,3.32685837]
[1760850557127,0.54554943,3912.0,3911.9,3.32685837]
[1760850557760,0.94646399,3912.0,3911.9,3.32685837]
[1760850558057,1.36786399,3912.0,3911.9,2.77055581]
[1760850560252,1.36786399,3912.0,3911.9,5.32685837]
[1760850560453,1.32331456,3912.0,3911.9,5.32685837]
[1760850561483,0.90191456,3912.0,3911.9,5.32685837]
[1760850561880,0.90191456,3912.0,3911.9,2.77055581]
[1760850562085,1.32331456,3912.0,3911.9,2.77055581]
[1760850562454,0.9224,3912.0,3911.9,2.77055581]
[1760850565152,0.96695074,3912.0,3911.9,2.77055581]
[1760850565663,0.54555074,3912.0,3911.9,2.77055581]
[1760850566286,0.54555074,3912.0,3911.9,5.32685837]
[1760850566854,0.54555074,3912.0,3911.9,2.77055581]
[1760850567558,0.54555074,3912.0,3911.9,5.32685837]
[1760850568759,0.94647407,3912.0,3911.9,5.32685837]
[1760850569384,0.90192333,3912.0,3911.9,5.32685837]
[1760850571358,0.90192333,3912.0,3911.9,2.77055581]
[1760850571559,0.90192333,3912.0,3911.9,5.32685837]
[1760850574472,0.90192333,3912.0,3911.9,2.77055581]
[1760850574668,0.501,3912.0,3911.9,2.77055581]
[1760850575308,0.501,3912.0,3911.9,5.32685837]
[1760850576407,0.501,3912.0,3911.9,2.77055581]
[1760850577103,0.9224,3912.0,3911.9,2.77055581]
[1760850577781,0.501,3912.0,3911.9,2.77055581]
[1760850577976,0.9224,3912.0,3911.9,2.77055581]
[1760850579408,0.9224,3912.0,3911.9,2.002]
[1760850581107,1.32333697,3912.0,3911.9,2.002]
[1760850581677,0.90193697,3912.0,3911.9,2.002]
[1760850582082,0.90193697,3912.0,3911.9,2.77077049]
[1760850584606,0.501,3912.0,3911.9,2.77077049]
[1760850585119,0.54555132,3912.0,3911.9,2.77077049]
[1760850588884,0.9464802,3912.0,3911.9,2.77077049]
[1760850589117,0.9464802,3912.0,3911.9,7.05507305]
[1760850589320,0.9464802,3912.0,3911.9,2.77077049]
[1760850594015,1.3678802,3912.0,3911.9,2.77077049]
[1760850594813,0.96695132,3912.0,3911.9,2.77077049]
[1760850597633,0.54555132,3912.0,3911.9,5.32707305]
[1760850598135,0.54555132,3912.0,3911.9,2.77077049]
[1760850599003,0.94647533,3912.0,3911.9,2.77077049]
[1760850599832,1.36787533,3912.0,3911.9,2.77077049]
[1760850600742,0.94647533,3912.0,3911.9,2.77077049]
[1760850604410,0.54555132,3912.0,3911.9,2.77077049]
[1760850605434,0.54555132,3912.0,3911.9,3.23047049]
[1760850606340,0.54555132,3912.0,3911.9,6.62110469]
[1760850606533,0.501,3912.0,3911.9,6.62110469]
[1760850607751,0.501,3912.0,3911.9,8.34910469]
[1760850607953,0.501,3912.0,3911.9,8.98270469]
[1760850609005,0.90187829,3912.0,3911.9,8.98270469]
[1760850614272,0.501,3912.0,3911.9,8.98270469]
[1760850615387,0.501,3912.0,3911.9,7.88940469]
[1760850617260,0.501,3912.0,3911.9,5.32707305]
[1760850617460,0.9341,3912.0,3911.9,5.32707305]
[1760850617661,0.501,3912.0,3911.9,2.77077049]
[1760850617866,0.9341,3912.0,3911.9,2.77077049]
[1760850618777,1.33503495,3912.0,3911.9,2.77077049]
[1760850624680,0.9341,3912.0,3911.9,2.77077049]
[1760850625883,0.97865207,3912.0,3911.9,2.77077049]
[1760850626700,0.54555207,3912.0,3911.9,2.77077049]
[1760850626905,0.54555207,3912.0,3911.9,5.32707305]
[1760850627497,0.54555207,3912.0,3911.9,5.76137305]
[1760850628199,0.54555207,3912.0,3911.9,5.32707305]
[1760850628402,0.54555207,3912.0,3911.9,2.77077049]
[1760850629006,0.94647459,3912.0,3911.9,2.77077049]
[1760850630177,1.37957459,3912.0,3911.9,2.77077049]
[1760850630499,0.94647459,3912.0,3911.9,2.77077049]
[1760850630707,1.37957459,3912.0,3911.9,2.77077049]
[1760850631074,0.94647459,3912.0,3911.9,2.77077049]
[1760850631577,0.94647459,3912.0,3911.9,2.002]
[1760850631578,1.37957459,3912.0,3911.9,2.002]
[1760850631776,1.53025205,3912.0,3911.9,2.002]
[1760850634679,1.12932953,3912.0,3911.9,2.002]
[1760850639117,1.53028479,3912.0,3911.9,2.002]
[1760850641536,1.09718479,3912.0,3911.9,2.002]
[1760850641692,1.52608479,3912.0,3911.9,2.002]
[1760850642429,0.94650733,3912.0,3911.9,2.447]
[1760850642608,0.94650733,3912.0,3911.9,5.77202971]
[1760850642925,0.90195526,3912.0,3911.9,5.77202971]
[1760850645630,0.501,3912.0,3911.9,5.77202971]
[1760850645807,0.501,3912.0,3911.9,6.6048748]
[1760850646996,0.54554932,3912.0,3911.9,6.6048748]
[1760850649902,0.94645778,3912.0,3911.9,6.6048748]
[1760850651526,0.94645778,3912.0,3911.9,7.7648748]
[1760850654052,0.94645778,3912.0,3911.9,7.3198748]
[1760850655543,0.54554932,3912.0,3911.9,4.76357224]
[1760850656037,0.54554932,3912.0,3911.9,7.3198748]
[1760850658239,0.54554932,3912.0,3911.9,7.7648748]
[1760850659711,0.94645523,3912.0,3911.9,7.7648748]
[1760850664556,0.54554932,3912.0,3911.9,7.7648748]
[1760850666552,0.54554932,3912.0,3911.9,7.7588748]
[1760850669019,0.94644455,3912.0,3911.9,7.7588748]
[1760850669221,0.94644455,3912.0,3911.9,7.3198748]
[1760850670656,0.94644455,3912.0,3911.9,7.7551748]
[1760850671358,0.94644455,3912.0,3911.9,11.1898748]
[1760850672558,0.94644455,3912.0,3911.9,11.6251748]
[1760850674252,0.54554932,3912.0,3911.9,11.6251748]
[1760850678058,0.501,3912.0,3911.9,8.3887748]
[1760850678366,0.501,3912.0,3911.9,8.5159748]
[1760850678934,0.90188946,3912.0,3911.9,8.5159748]
[1760850679872,0.90188946,3912.0,3911.9,14.1139748]
[1760850681103,0.94643351,3912.0,3911.9,14.1139748]
[1760850682259,0.90188946,3912.0,3911.9,14.1139748]
[1760850683672,0.90188946,3912.0,3911.9,13.6786748]
[1760850684666,0.501,3912.0,3911.9,14.1139748]
[1760850688289,0.501,3912.0,3911.9,13.6786748]
[1760850690793,0.501,3912.0,3911.9,14.1139748]
[1760850699594,0.501,3912.0,3911.9,13.6786748]
[1760850700698,0.501,3912.0,3911.9,14.1493748]
[1760850703811,0.501,3912.0,3911.9,13.6786748]
[1760850706411,0.9204,3912.0,3911.9,13.6786748]
[1760850707804,0.501,3912.0,3911.9,13.6786748]
[1760850710981,0.501,3912.0,3911.9,14.1493748]
[1760850711314,0.501,3912.0,3911.9,13.6786748]
[1760850715119,0.9204,3912.0,3911.9,13.6786748]
[1760850715319,0.501,3912.0,3911.9,13.6786748]
[1760850723042,0.9204,3912.0,3911.9,13.0450748]
[1760850723541,0.9204,3912.0,3911.9,12.21222971]
[1760850725228,0.4204,3912.0,3911.9,12.21222971]
[1760850726513,0.46494578,3912.0,3911.9,12.21222971]
[1760850726713,0.8658417,3912.0,3911.9,12.21222971]
[1760850727648,0.8658417,3912.0,3911.9,8.34222971]
[1760850737364,0.4464417,3912.0,3911.9,8.34222971]
[1760850737554,0.4464417,3912.0,3911.9,9.81909495]
[1760850738029,0.04554578,3912.0,3911.9,9.81909495]
[1760850738533,0.04554578,3912.0,3911.9,8.09109495]
[1760850738534,0.46494578,3912.0,3911.9,8.09109495]
[1760850738734,0.46494578,3912.0,3911.9,6.61422971]
[1760850741205,0.46494578,3912.0,3911.9,3.93072715]
[1760850742150,0.86587806,3912.0,3911.9,3.93072715]
[1760850744571,0.46494578,3912.0,3911.9,3.93072715]
[1760850744873,0.4204,3912.0,3911.9,3.93072715]
[1760850748587,0.46495022,3912.0,3911.9,3.93072715]
[1760850748989,0.82133148,3912.0,3911.9,3.93072715]
[1760850752261,0.86588428,3912.0,3911.9,3.93072715]
[1760850754696,0.86588428,3912.0,3911.9,3.162]
[1760850754697,0.4649528,3912.0,3911.9,3.162]
[1760850758868,0.86594631,3912.0,3911.9,3.162]
[1760850759309,1.62096339,3912.0,3911.9,3.162]
[1760850760280,1.57641059,3912.0,3911.9,3.162]
[1760850763321,1.62096925,3912.0,3911.9,3.162]
[1760850763813,1.62097043,3912.0,3911.9,3.162]
[1760850764508,1.21997692,3912.0,3911.9,3.162]
[1760850766792,1.85357692,3912.0,3911.9,3.162]
[1760850767319,4.35060951,3912.0,3911.9,3.162]
[1760850769886,3.58157692,3912.0,3911.9,3.162]
[1760850771304,3.53701708,3912.0,3911.9,3.162]
[1760850774793,6.86244462,3912.0,3911.9,3.162]
[1760850775000,0.6336,3911.8,3911.5,0.002]
[1760850775312,6.78042446,3911.6,3911.5,0.002]
[1760850775733,7.83022446,3911.6,3911.5,0.002]
[1760850778022,8.23133023,3911.6,3911.5,0.002]
[1760850780703,7.71893023,3911.6,3911.5,0.002]
[1760850781405,8.13193023,3911.6,3911.5,0.002]
[1760850781629,8.88694731,3911.6,3911.5,0.002]
[1760850781948,9.33044731,3911.6,3911.5,0.002]
[1760850782807,9.33044731,3911.6,3911.5,0.4435]
[1760850782808,0.40110577,3911.6,3911.5,0.4435]
[1760850783240,0.4456685,3911.6,3911.5,0.4435]
[1760850783438,0.40110577,3911.6,3911.5,0.4435]
[1760850784528,1.728,3911.8,3911.5,0.4435]
[1760850784723,1.728,3911.8,3911.6,0.4388]
[1760850784937,0.66852245,3911.7,3911.6,0.4388]
[1760850785351,0.66852245,3911.7,3911.5,0.002]
[1760850785952,0.71308515,3911.7,3911.5,0.002]
[1760850787042,0.99388515,3911.7,3911.5,0.002]
[1760850787653,1.39493874,3911.7,3911.5,0.002]
[1760850787854,0.45331598,3911.6,3911.5,0.002]
[1760850788055,1.36771598,3911.6,3911.5,0.002]
[1760850788724,1.08691598,3911.6,3911.5,0.002]
[1760850789033,1.36771598,3911.6,3911.5,0.002]
[1760850791454,1.08691598,3911.6,3911.5,0.002]
[1760850792362,1.36771598,3911.6,3911.5,0.002]
[1760850793056,0.6336,3911.5,3910.3,0.2214]
[1760850793234,4.95622446,3910.6,3910.3,0.2214]
[1760850793640,5.00079542,3910.6,3910.3,0.2214]
[1760850794640,6.72879542,3910.6,3910.3,0.2214]
[1760850795155,6.8585558,3910.6,3910.3,0.2214]
[1760850795339,7.04764091,3910.6,3910.3,0.2214]
[1760850795544,0.04457096,3910.6,3910.5,0.442]
[1760850797743,0.04457096,3910.6,3910.5,0.002]
[1760850797955,0.40107663,3910.6,3910.5,2.99921774]
[1760850798465,0.40107663,3910.6,3910.5,3.44121774]
[1760850798640,0.40107663,3910.6,3910.5,4.5592333]
[1760850799366,0.40107663,3910.6,3910.5,0.444]
[1760850799570,0.40107663,3910.6,3910.5,0.884]
[1760850799863,0.40107663,3910.6,3910.5,0.442]
[1760850801354,0.40107663,3910.6,3910.5,0.002]
[1760850801669,0.40107663,3910.6,3910.5,0.442]
[1760850803063,0.44564043,3910.6,3910.5,0.442]
[1760850804674,0.0445638,3910.6,3910.5,0.442]
[1760850806670,0.0445638,3910.6,3910.5,0.002]
[1760850806875,0.0445638,3910.6,3910.5,0.442]
[1760850808871,0.44562431,3910.6,3910.5,0.442]
[1760850809257,0.44662431,3910.6,3910.5,0.442]
[1760850810658,0.44662431,3910.6,3910.5,2.99921774]
[1760850810863,0.40206051,3910.6,3910.5,4.64685664]
[1760850811049,0.40206051,3910.6,3910.5,2.0896389]
[1760850811654,0.40206051,3910.6,3910.5,4.64685664]
[1760850812979,0.40206051,3910.6,3910.5,6.88125664]
[1760850813954,0.001,3910.6,3910.5,6.88125664]
[1760850822869,0.001,3910.6,3910.5,7.00845664]
[1760850824862,0.001,3910.6,3910.5,6.56845664]
[1760850825093,0.001,3910.6,3910.5,7.04205664]
[1760850825490,0.001,3910.6,3910.5,5.93485664]
[1760850830016,0.001,3910.6,3910.5,4.86104205]
[1760850830309,0.4396,3910.6,3910.5,3.13304205]
[1760850831803,0.001,3910.6,3910.5,3.13304205]
[1760850832393,0.001,3910.6,3910.5,3.60664205]
[1760850832594,0.001,3910.6,3910.5,4.61064056]
[1760850833180,0.001,3910.6,3910.5,4.13704056]
[1760850835090,0.0455565,3910.6,3910.5,4.13704056]
[1760850836289,0.0455565,3910.6,3910.5,3.13304205]
[1760850837421,0.4841565,3910.6,3910.5,3.13304205]
[1760850837619,0.0455565,3910.6,3910.5,3.13304205]
[1760850839013,0.001,3910.6,3910.5,3.13304205]
[1760850841107,0.001,3910.6,3910.5,4.86104205]
[1760850841419,0.001,3910.6,3910.5,6.03784056]
[1760850842720,0.04555667,3910.6,3910.5,6.03784056]
[1760850844893,0.51395667,3910.6,3910.5,6.03784056]
[1760850845094,0.51395667,3910.6,3910.5,4.86104205]
[1760850845297,0.04555667,3910.6,3910.5,4.86104205]
[1760850846018,0.51395667,3910.6,3910.5,4.86104205]
[1760850847394,0.91498116,3910.6,3910.5,4.86104205]
[1760850847796,0.87042449,3910.6,3910.5,4.86104205]
[1760850848094,0.87042449,3910.6,3910.5,0.44862431]
[1760850848596,0.87042449,3910.6,3910.5,3.00584205]
[1760850849413,0.4694,3910.6,3910.5,3.00584205]
[1760850852030,0.001,3910.6,3910.5,3.00584205]
[1760850853136,0.4393,3910.6,3910.5,3.00584205]
[1760850854134,0.48386323,3910.6,3910.5,3.00584205]
[1760850855707,0.88490309,3910.6,3910.5,3.00584205]
[1760850856740,0.88490309,3910.6,3910.5,0.44862431]
[1760850857841,0.88490309,3910.6,3910.5,0.002]
[1760850858519,0.84033986,3910.6,3910.5,0.002]
[1760850861312,0.4393,3910.6,3910.5,0.002]
[1760850862317,0.4393,3910.6,3910.5,2.55921774]
[1760850863525,0.001,3910.6,3910.5,2.55921774]
[1760850864044,0.04556334,3910.6,3910.5,2.99851774]
[1760850864535,0.44660078,3910.6,3910.5,2.99851774]
[1760850869318,0.44660078,3910.6,3910.5,3.43211774]
[1760850869746,0.44660078,3910.6,3910.5,2.99851774]
[1760850870539,0.04556334,3910.6,3910.5,2.99851774]
[1760850871921,0.04556334,3910.6,3910.5,3.55931774]
[1760850872131,0.04556334,3910.6,3910.5,3.92233254]
[1760850872965,0.04556334,3910.6,3910.5,3.48873254]
[1760850873761,0.44659191,3910.6,3910.5,3.48873254]
[1760850874262,0.44659191,3910.6,3910.5,3.12571774]
[1760850876934,0.88899191,3910.6,3910.5,3.12571774]
[1760850878078,0.44659191,3910.6,3910.5,3.12571774]
[1760850884444,0.04556334,3910.6,3910.5,3.12571774]
[1760850885489,0.48796334,3910.6,3910.5,3.12571774]
[1760850885870,0.48796334,3910.6,3910.5,0.5685]
[1760850886188,0.48796334,3910.6,3910.5,3.12571774]
[1760850887366,0.88900988,3910.6,3910.5,3.12571774]
[1760850888179,0.44660988,3910.6,3910.5,0.5685]
[1760850888365,0.88900988,3910.6,3910.5,0.002]
[1760850889275,0.84444654,3910.6,3910.5,0.002]
[1760850890578,0.84444654,3910.6,3910.5,0.10454451]
[1760850892593,0.88901623,3910.6,3910.5,0.10454451]
[1760850896077,0.48796969,3910.6,3910.5,0.10454451]
[1760850899204,0.88905251,3910.6,3910.5,0.10454451]
[1760850899708,0.48796969,3910.6,3910.5,0.10454451]
[1760850901307,0.48796969,3910.6,3910.5,0.002]
[1760850901513,0.4434,3910.6,3910.5,0.002]
[1760850901683,0.98781941,3910.6,3910.5,0.002]
[1760850902310,2.71581941,3910.6,3910.5,0.002]
[1760850904481,3.16151584,3910.6,3910.5,0.002]
[1760850907479,1.42931584,3910.6,3910.5,0.002]
[1760850912519,1.02819441,3910.6,3910.5,0.002]
[1760850915216,0.98361941,3910.6,3910.5,0.002]
[1760850915623,1.38478017,3910.6,3910.5,0.002]
[1760850917528,1.42935698,3910.6,3910.5,0.002]
[1760850919934,1.02819622,3910.6,3910.5,0.002]
[1760850922443,0.98361941,3910.6,3910.5,0.002]
[1760850923147,1.38476089,3910.6,3910.5,0.002]
[1760850925273,1.42933784,3910.6,3910.5,0.002]
[1760850928861,1.02819636,3910.6,3910.5,0.002]
[1760850931938,0.58999636,3910.6,3910.5,0.002]
[1760850932266,0.99113298,3910.6,3910.5,0.002]
[1760850932660,0.94655603,3910.6,3910.5,0.002]
[1760850934476,0.98671941,3910.6,3910.5,0.002]
[1760850934777,1.38785395,3910.6,3910.5,0.002]
[1760850936494,0.54541941,3910.6,3910.5,0.002]
[1760850937980,0.001,3910.6,3910.5,0.002]
[1760850938181,0.001,3910.6,3910.5,0.4711]
[1760850938349,0.001,3910.6,3910.5,0.57365108]
[1760850939044,0.001,3910.6,3910.5,0.10455108]
[1760850939250,0.001,3910.6,3910.5,0.57365108]
[1760850939480,0.40209051,3910.6,3910.5,0.57365108]
[1760850939986,0.001,3910.6,3910.5,0.57365108]
[1760850943256,0.40209082,3910.6,3910.5,0.57365108]
[1760850944578,0.44666307,3910.6,3910.5,0.57365108]
[1760850944780,0.40209082,3910.6,3910.5,0.57365108]
[1760850945154,0.001,3910.6,3910.5,0.57365108]
[1760850945355,0.001,3910.6,3910.5,0.88734375]
[1760850945892,0.001,3910.6,3910.5,0.57365108]
[1760850947185,0.40206999,3910.6,3910.5,0.57365108]
[1760850948606,0.44663891,3910.6,3910.5,0.57365108]
[1760850949971,0.04556892,3910.6,3910.5,0.57365108]
[1760850950173,0.04556892,3910.6,3910.5,3.13086882]
[1760850950486,0.04556892,3910.6,3910.5,3.4445557]
[1760850950683,0.04556892,3910.6,3910.5,0.88733796]
[1760850952215,0.04556892,3910.6,3910.5,3.4445557]
[1760850952684,0.001,3910.6,3910.5,3.4445557]
[1760850952893,0.40205189,3910.6,3910.5,3.47012787]
[1760850953067,0.40205189,3910.6,3910.5,3.4445557]
[1760850955296,0.44661539,3910.6,3910.5,3.4445557]
[1760850956211,0.0455635,3910.6,3910.5,3.4445557]
[1760850956616,0.0455635,3910.6,3910.5,0.88733796]
[1760850957285,0.0455635,3910.6,3910.5,0.41823796]
[1760850959115,0.44660091,3910.6,3910.5,0.41823796]
[1760850959511,0.44660091,3910.6,3910.5,0.88733796]
[1760850959712,0.44660091,3910.6,3910.5,3.13086882]
[1760850960733,0.44660091,3910.6,3910.5,3.25806882]
[1760850961619,0.44660091,3910.6,3910.5,4.88444099]
[1760850961920,0.0455635,3910.6,3910.5,5.49246882]
[1760850962894,0.001,3910.6,3910.5,5.49246882]
[1760850963217,0.001,3910.6,3910.5,7.18067094]
[1760850967105,0.001,3910.6,3910.5,11.05067094]
[1760850968327,0.40199646,3910.6,3910.5,11.05067094]
[1760850969130,0.001,3910.6,3910.5,11.05067094]
[1760850970217,0.001,3911.0,3910.5,11.05067094]
[1760850970218,0.001,3911.0,3910.9,3.19055619]
[1760850970421,0.001,3911.0,3910.9,20.57540265]
[1760850970730,0.001,3911.0,3910.9,12.89978065]
[1760850971034,0.001,3911.0,3910.9,13.00226762]
[1760850971619,0.001,3911.0,3910.9,17.30117962]
[1760850971929,0.001,3911.0,3910.9,18.24755884]
[1760850972137,0.001,3911.0,3910.9,15.57057184]
[1760850972696,0.001,3911.0,3910.9,15.82687184]
[1760850973012,0.001,3911.0,3910.9,15.57057184]
[1760850973630,0.001,3911.0,3910.9,28.74863984]
[1760850974523,0.001,3911.0,3910.9,25.27329284]
[1760850974719,0.001,3911.0,3910.9,25.00903384]
[1760850974923,0.001,3911.4,3911.3,3.1902947]
[1760850975126,0.001,3911.4,3911.3,13.23251557]
[1760850975325,0.001,3911.4,3911.3,13.78814863]
[1760850975526,0.001,3911.4,3911.3,14.1900575]
[1760850978106,0.001,3911.4,3911.3,6.20883304]
[1760850978433,0.001,3911.4,3911.3,14.1890575]
[1760850978635,0.001,3911.4,3911.3,20.1997065]
[1760850979339,0.001,3911.4,3911.3,16.8850575]
[1760850981148,0.001,3911.4,3911.3,34.7186695]
[1760850981312,0.001,3911.4,3911.3,30.2651425]
[1760850981514,0.001,3911.4,3911.3,29.3769445]
[1760850982408,0.001,3911.4,3911.3,28.2681595]
[1760850983148,0.001,3911.4,3911.3,26.7073975]
[1760850983337,0.001,3911.4,3911.3,23.2251175]
[1760850983524,0.001,3911.4,3911.3,22.9592185]
[1760850984726,0.001,3911.4,3911.3,26.8292185]
[1760850985568,0.001,3911.4,3911.3,23.8580165]
[1760850985728,0.001,3911.4,3911.3,20.7550575]
[1760850986661,0.001,3911.4,3911.3,20.3010575]
[1760850986857,0.001,3911.4,3911.3,17.7310575]
[1760850987047,0.001,3911.4,3911.3,15.0350575]
[1760850987248,0.001,3911.4,3911.3,14.4014575]
[1760850987566,0.4415,3911.4,3911.3,12.6734575]
[1760850987770,0.84238695,3911.4,3911.3,11.3734575]
[1760850988070,0.4415,3911.4,3911.3,13.7350575]
[1760850990270,0.001,3911.4,3911.3,13.7350575]
[1760850990770,0.4415,3911.4,3911.3,13.7350575]
[1760850993138,0.4415,3911.4,3911.3,11.1650575]
[1760850993649,0.4415,3911.4,3911.3,15.0350575]
[1760850995061,0.001,3911.4,3911.3,15.0350575]
[1760850995370,0.4537,3911.4,3911.3,15.0350575]
[1760850995973,0.001,3911.4,3911.3,15.0350575]
[1760851003492,0.001,3911.4,3911.3,15.5068575]
[1760851004155,0.001,3911.4,3911.3,15.0350575]
[1760851004992,0.001,3911.4,3911.3,15.5068575]
[1760851005754,0.001,3911.4,3911.3,15.0350575]
[1760851006760,0.4537,3911.4,3911.3,15.0350575]
[1760851007386,0.001,3911.4,3911.3,15.0350575]
[1760851007895,0.4537,3911.4,3911.3,15.0350575]
[1760851008590,0.001,3911.4,3911.3,15.0350575]
[1760851012799,0.4537,3911.4,3911.3,15.0350575]
[1760851014312,0.001,3911.4,3911.3,15.0350575]
[1760851017426,0.40190303,3911.4,3911.3,15.0350575]
[1760851018527,0.001,3911.4,3911.3,15.0350575]
[1760851022348,0.5645,3912.9,3911.9,3.18990256]
[1760851022531,0.1118,3912.9,3912.1,8.26279633]
[1760851022696,0.04454232,3913.6,3912.3,4.9176412]
[1760851022697,1e-08,3912.4,3912.3,4.9176412]
[1760851023008,1e-08,3912.4,3912.3,9.02239021]
[1760851023204,1e-08,3912.4,3912.3,12.02425011]
[1760851023429,1e-08,3912.4,3912.3,23.45802311]
[1760851023629,1e-08,3912.4,3912.3,23.69392311]
[1760851024194,0.2228,3913.8,3912.3,23.69392311]
[1760851024195,0.4527,3914.6,3913.9,2.55499629]